[Event "Early-Titled-Tuesday-Blitz-February-06-2024"]
[Site "Chess.com"]
[Date "2024.02.06"]
[Round "5"]
[White "korkmaz16"]
[Black "PepeCuenca"]
[Result "0-1"]
[WhiteElo "2512"]
[BlackElo "2711"]
[TimeControl "180+1"]
[EndTime "8:55:37 PST"]
[Termination "PepeCuenca won on time"]

1. e4 {[%clk 0:02:45]} 1... c5 {[%clk 0:02:59.3]} 2. Nc3 {[%clk 0:02:35]} 2...
Nc6 {[%clk 0:02:56]} 3. f4 {[%clk 0:02:32.3]} 3... g6 {[%clk 0:02:55.6]} 4. Nf3
{[%clk 0:02:28.6]} 4... Bg7 {[%clk 0:02:54.9]} 5. Bb5 {[%clk 0:02:26.7]} 5...
Nd4 {[%clk 0:02:53.7]} 6. O-O {[%clk 0:02:26.6]} 6... a6 {[%clk 0:02:44.9]} 7.
Bd3 {[%clk 0:02:25]} 7... d6 {[%clk 0:02:28.1]} 8. Nxd4 {[%clk 0:02:21]} 8...
cxd4 {[%clk 0:02:26.8]} 9. Ne2 {[%clk 0:02:18.4]} 9... Nf6 {[%clk 0:02:25]} 10.
Kh1 {[%clk 0:02:09.4]} 10... O-O {[%clk 0:02:18.5]} 11. Nxd4 {[%clk 0:01:54.5]}
11... Nxe4 {[%clk 0:02:14.1]} 12. Bxe4 {[%clk 0:01:54.7]} 12... Bxd4 {[%clk
0:02:13.9]} 13. c3 {[%clk 0:01:55.2]} 13... Bg7 {[%clk 0:02:13.3]} 14. d4 {[%clk
0:01:55.4]} 14... d5 {[%clk 0:02:01.2]} 15. Bd3 {[%clk 0:01:52.9]} 15... e6
{[%clk 0:01:58.8]} 16. Be3 {[%clk 0:01:31.9]} 16... a5 {[%clk 0:01:58.6]} 17.
Qe1 {[%clk 0:01:26.4]} 17... b6 {[%clk 0:01:56.4]} 18. Bf2 {[%clk 0:01:26.1]}
18... Ba6 {[%clk 0:01:52.5]} 19. Bxa6 {[%clk 0:01:24.6]} 19... Rxa6 {[%clk
0:01:52.6]} 20. Bh4 {[%clk 0:01:24.2]} 20... Qd7 {[%clk 0:01:50.7]} 21. Bg5
{[%clk 0:01:18]} 21... h6 {[%clk 0:01:43.4]} 22. Bh4 {[%clk 0:01:14.3]} 22... b5
{[%clk 0:01:43.6]} 23. a3 {[%clk 0:01:12.7]} 23... Rb6 {[%clk 0:01:41]} 24. b4
{[%clk 0:00:51.4]} 24... Rc6 {[%clk 0:01:31.2]} 25. a4 {[%clk 0:00:39.4]} 25...
axb4 {[%clk 0:01:27.4]} 26. cxb4 {[%clk 0:00:33.1]} 26... Bxd4 {[%clk
0:01:18.9]} 27. axb5 {[%clk 0:00:31.2]} 27... Rb6 {[%clk 0:01:15.3]} 28. Ra6
{[%clk 0:00:27.1]} 28... Qxb5 {[%clk 0:01:10.4]} 29. Rxb6 {[%clk 0:00:25.4]}
29... Qxb6 {[%clk 0:01:08.1]} 30. Be7 {[%clk 0:00:24.3]} 30... Re8 {[%clk
0:01:06.1]} 31. Bc5 {[%clk 0:00:22]} 31... Bxc5 {[%clk 0:01:05.2]} 32. bxc5
{[%clk 0:00:22.9]} 32... Qxc5 {[%clk 0:01:05.7]} 33. Qe5 {[%clk 0:00:22.3]}
33... Qf8 {[%clk 0:00:49]} 34. h3 {[%clk 0:00:20]} 34... Qg7 {[%clk 0:00:47.8]}
35. Qd6 {[%clk 0:00:20.2]} 35... Qf6 {[%clk 0:00:47.2]} 36. Rf3 {[%clk
0:00:20.3]} 36... h5 {[%clk 0:00:46.6]} 37. Kh2 {[%clk 0:00:20.4]} 37... Rd8
{[%clk 0:00:45.7]} 38. Qc7 {[%clk 0:00:20.1]} 38... d4 {[%clk 0:00:39.9]} 39.
Rd3 {[%clk 0:00:18]} 39... Kg7 {[%clk 0:00:39]} 40. Kg3 {[%clk 0:00:15.3]} 40...
Rd5 {[%clk 0:00:38.2]} 41. Kf3 {[%clk 0:00:14.3]} 41... g5 {[%clk 0:00:26.5]}
42. g3 {[%clk 0:00:14.2]} 42... Qf5 {[%clk 0:00:22.6]} 0-1

[Event "Early-Titled-Tuesday-Blitz-February-06-2024"]
[Site "Chess.com"]
[Date "2024.02.06"]
[Round "5"]
[White "Aradhya2000"]
[Black "Rud_Makarian"]
[Result "0-1"]
[WhiteElo "2693"]
[BlackElo "3029"]
[TimeControl "180+1"]
[EndTime "8:55:39 PST"]
[Termination "Rud_Makarian won by checkmate"]

1. d4 {[%clk 0:03:00.9]} 1... Nf6 {[%clk 0:02:28.4]} 2. c4 {[%clk 0:03:00.8]}
2... e6 {[%clk 0:02:26.2]} 3. Nf3 {[%clk 0:03:00.7]} 3... d5 {[%clk 0:02:26.1]}
4. Nc3 {[%clk 0:03:00.1]} 4... dxc4 {[%clk 0:02:26.4]} 5. e4 {[%clk 0:02:59.6]}
5... b5 {[%clk 0:02:26.9]} 6. e5 {[%clk 0:02:59.8]} 6... Nd5 {[%clk 0:02:27.5]}
7. Nxb5 {[%clk 0:03:00.5]} 7... Nb6 {[%clk 0:02:28.3]} 8. a4 {[%clk 0:03:00.3]}
8... a6 {[%clk 0:02:28.1]} 9. Nc3 {[%clk 0:02:39.1]} 9... a5 {[%clk 0:02:28.2]}
10. Be2 {[%clk 0:02:38.7]} 10... Bb7 {[%clk 0:02:28.2]} 11. O-O {[%clk
0:02:38.7]} 11... Nc6 {[%clk 0:02:28.8]} 12. Be3 {[%clk 0:02:32.9]} 12... Be7
{[%clk 0:02:28.4]} 13. Rc1 {[%clk 0:02:18.9]} 13... Nb4 {[%clk 0:02:26.9]} 14.
Nd2 {[%clk 0:02:17.4]} 14... Nd3 {[%clk 0:02:16.4]} 15. Rb1 {[%clk 0:02:17.1]}
15... O-O {[%clk 0:02:01.8]} 16. Nxc4 {[%clk 0:02:12.9]} 16... Nxc4 {[%clk
0:02:01.8]} 17. Bxd3 {[%clk 0:02:13]} 17... Nxe3 {[%clk 0:02:02.4]} 18. fxe3
{[%clk 0:02:13.3]} 18... c5 {[%clk 0:02:01.9]} 19. Be4 {[%clk 0:01:42.6]} 19...
cxd4 {[%clk 0:01:50.9]} 20. Bxb7 {[%clk 0:01:39.6]} 20... Rb8 {[%clk 0:01:49.7]}
21. exd4 {[%clk 0:01:33.4]} 21... Rxb7 {[%clk 0:01:50]} 22. Nb5 {[%clk
0:01:32.5]} 22... g6 {[%clk 0:01:49.9]} 23. Rc1 {[%clk 0:01:29.4]} 23... Rd7
{[%clk 0:01:27.9]} 24. Kh1 {[%clk 0:01:21.6]} 24... Kg7 {[%clk 0:01:07.6]} 25.
Qf3 {[%clk 0:01:12.3]} 25... Bg5 {[%clk 0:00:56.2]} 26. Rc4 {[%clk 0:01:10.5]}
26... f6 {[%clk 0:00:53.2]} 27. Qg3 {[%clk 0:00:32.6]} 27... fxe5 {[%clk
0:00:41.9]} 28. Qxe5+ {[%clk 0:00:32.3]} 28... Kh6 {[%clk 0:00:39.8]} 29. Re1
{[%clk 0:00:25.6]} 29... Rdf7 {[%clk 0:00:35.8]} 30. g3 {[%clk 0:00:13.3]} 30...
Qa8+ {[%clk 0:00:19.5]} 31. Re4 {[%clk 0:00:12.9]} 31... Rf1+ {[%clk 0:00:17.7]}
32. Kg2 {[%clk 0:00:12.8]} 32... R8f2+ {[%clk 0:00:18]} 33. Kh3 {[%clk
0:00:13.1]} 33... Qf8 {[%clk 0:00:13.7]} 34. Rc7 {[%clk 0:00:10.8]} 34... Rh1
{[%clk 0:00:07.9]} 35. Kg4 {[%clk 0:00:07.4]} 35... Qf5+ {[%clk 0:00:07.5]} 36.
Qxf5 {[%clk 0:00:07.2]} 36... exf5+ {[%clk 0:00:07.8]} 37. Kh3 {[%clk
0:00:07.6]} 37... Rfxh2# {[%clk 0:00:08.5]} 0-1

[Event "Early-Titled-Tuesday-Blitz-February-06-2024"]
[Site "Chess.com"]
[Date "2024.02.06"]
[Round "5"]
[White "OparinGrigoriy"]
[Black "maximnovik"]
[Result "1-0"]
[WhiteElo "2986"]
[BlackElo "2607"]
[TimeControl "180+1"]
[EndTime "8:55:39 PST"]
[Termination "OparinGrigoriy won on time"]

1. a3 {[%clk 0:03:00.9]} 1... e5 {[%clk 0:02:59.1]} 2. c4 {[%clk 0:03:00.9]}
2... Nf6 {[%clk 0:02:59.2]} 3. Nc3 {[%clk 0:03:01.4]} 3... Nc6 {[%clk
0:02:56.2]} 4. e3 {[%clk 0:03:00.7]} 4... Be7 {[%clk 0:02:51.2]} 5. b4 {[%clk
0:03:00.5]} 5... a6 {[%clk 0:02:48.5]} 6. Bb2 {[%clk 0:03:00.7]} 6... O-O {[%clk
0:02:46.2]} 7. Nf3 {[%clk 0:03:01.4]} 7... d5 {[%clk 0:02:31.7]} 8. cxd5 {[%clk
0:03:01.3]} 8... Nxd5 {[%clk 0:02:31.3]} 9. Qc2 {[%clk 0:03:01.9]} 9... Nxc3
{[%clk 0:02:29.2]} 10. Bxc3 {[%clk 0:03:01.1]} 10... Bd6 {[%clk 0:02:23.3]} 11.
Bd3 {[%clk 0:02:58.8]} 11... h6 {[%clk 0:02:20.9]} 12. Bh7+ {[%clk 0:02:48.7]}
12... Kh8 {[%clk 0:02:19.9]} 13. Bf5 {[%clk 0:02:49.6]} 13... Qe7 {[%clk
0:02:12.5]} 14. O-O {[%clk 0:02:41.4]} 14... Be6 {[%clk 0:02:09.3]} 15. Qe4
{[%clk 0:02:35.4]} 15... Bxf5 {[%clk 0:02:04]} 16. Qxf5 {[%clk 0:02:35.6]} 16...
e4 {[%clk 0:01:49.1]} 17. Nd4 {[%clk 0:02:35.1]} 17... Nxd4 {[%clk 0:01:48.6]}
18. Bxd4 {[%clk 0:02:35.2]} 18... Rae8 {[%clk 0:01:45.3]} 19. Rfc1 {[%clk
0:02:18.1]} 19... Qe6 {[%clk 0:01:41.4]} 20. Qxe6 {[%clk 0:02:17.8]} 20... Rxe6
{[%clk 0:01:40.9]} 21. a4 {[%clk 0:02:14.5]} 21... Ra8 {[%clk 0:01:24.3]} 22.
Kf1 {[%clk 0:02:11.8]} 22... Kg8 {[%clk 0:01:18.6]} 23. Ke2 {[%clk 0:02:11.8]}
23... Kf8 {[%clk 0:01:13.3]} 24. Rab1 {[%clk 0:02:11.2]} 24... Ke7 {[%clk
0:01:10.8]} 25. h3 {[%clk 0:02:08.8]} 25... Kd7 {[%clk 0:01:10.3]} 26. g4 {[%clk
0:02:03.7]} 26... g6 {[%clk 0:01:09.7]} 27. b5 {[%clk 0:01:51.5]} 27... axb5
{[%clk 0:01:08.5]} 28. axb5 {[%clk 0:01:52.4]} 28... Be5 {[%clk 0:00:54.9]} 29.
Rc4 {[%clk 0:01:50.2]} 29... f5 {[%clk 0:00:35.2]} 30. Rbc1 {[%clk 0:01:44.6]}
30... Rc8 {[%clk 0:00:32.5]} 31. gxf5 {[%clk 0:01:36.3]} 31... gxf5 {[%clk
0:00:31.8]} 32. Rg1 {[%clk 0:01:37.1]} 32... c6 {[%clk 0:00:20.1]} 33. Bxe5
{[%clk 0:01:29.4]} 33... Rxe5 {[%clk 0:00:18.8]} 34. Rg7+ {[%clk 0:01:30.1]}
34... Re7 {[%clk 0:00:17.3]} 35. Rd4+ {[%clk 0:01:30.5]} 35... Ke6 {[%clk
0:00:16.4]} 36. Rg6+ {[%clk 0:01:31.1]} 36... Ke5 {[%clk 0:00:16.8]} 37. Rxh6
{[%clk 0:01:30.8]} 37... cxb5 {[%clk 0:00:16.5]} 38. Rb6 {[%clk 0:01:23]} 38...
Rc5 {[%clk 0:00:16.2]} 39. Rd8 {[%clk 0:01:11.7]} 39... f4 {[%clk 0:00:16.3]}
40. exf4+ {[%clk 0:00:44.7]} 40... Kxf4 {[%clk 0:00:16.3]} 41. Rh8 {[%clk
0:00:41.6]} 41... Ke5 {[%clk 0:00:15.1]} 42. Ke3 {[%clk 0:00:41.1]} 42... Rf7
{[%clk 0:00:12.9]} 43. Re8+ {[%clk 0:00:36.2]} 43... Kd5 {[%clk 0:00:12.3]} 44.
Rxe4 {[%clk 0:00:27.9]} 44... Rxf2 {[%clk 0:00:11.3]} 45. Rd4+ {[%clk
0:00:27.3]} 45... Ke5 {[%clk 0:00:11.4]} 46. Rd8 {[%clk 0:00:27.8]} 46... Rf1
{[%clk 0:00:09.5]} 47. d4+ {[%clk 0:00:27.7]} 47... Kf5 {[%clk 0:00:08]} 48.
dxc5 {[%clk 0:00:28.6]} 1-0

[Event "Early-Titled-Tuesday-Blitz-February-06-2024"]
[Site "Chess.com"]
[Date "2024.02.06"]
[Round "5"]
[White "hakanazeri2"]
[Black "vovachesss"]
[Result "1-0"]
[WhiteElo "2657"]
[BlackElo "2823"]
[TimeControl "180+1"]
[EndTime "8:55:40 PST"]
[Termination "hakanazeri2 won on time"]

1. Nf3 {[%clk 0:02:56.6]} 1... d5 {[%clk 0:03:00]} 2. d4 {[%clk 0:02:56]} 2...
Nf6 {[%clk 0:03:00]} 3. c4 {[%clk 0:02:55.5]} 3... e6 {[%clk 0:03:00.1]} 4. g3
{[%clk 0:02:55.3]} 4... dxc4 {[%clk 0:02:57.4]} 5. Bg2 {[%clk 0:02:56.2]} 5...
Bd7 {[%clk 0:02:58.1]} 6. Ne5 {[%clk 0:02:35.7]} 6... Bc6 {[%clk 0:02:58.3]} 7.
Nxc6 {[%clk 0:02:34.6]} 7... Nxc6 {[%clk 0:02:59.2]} 8. O-O {[%clk 0:02:34.7]}
8... Qd7 {[%clk 0:02:59.5]} 9. e3 {[%clk 0:02:34.8]} 9... Bd6 {[%clk 0:02:49]}
10. Nd2 {[%clk 0:02:23.8]} 10... Na5 {[%clk 0:02:39.9]} 11. Qc2 {[%clk 0:02:23]}
11... O-O {[%clk 0:02:07.3]} 12. Nxc4 {[%clk 0:02:18.3]} 12... Nxc4 {[%clk
0:02:08.2]} 13. Qxc4 {[%clk 0:02:16.4]} 13... c6 {[%clk 0:02:08.8]} 14. e4
{[%clk 0:02:04.2]} 14... e5 {[%clk 0:02:08.9]} 15. f4 {[%clk 0:02:01.3]} 15...
b5 {[%clk 0:01:49]} 16. Qb3 {[%clk 0:01:36.1]} 16... Bc7 {[%clk 0:00:27.7]} 17.
dxe5 {[%clk 0:01:31.8]} 17... Ng4 {[%clk 0:00:25.5]} 18. h3 {[%clk 0:01:28.4]}
18... Bb6+ {[%clk 0:00:24.7]} 19. Kh1 {[%clk 0:01:27.8]} 19... Nf2+ {[%clk
0:00:23.5]} 20. Kh2 {[%clk 0:01:27.2]} 20... Nd3 {[%clk 0:00:15.9]} 21. Rd1
{[%clk 0:01:25.6]} 21... Rfd8 {[%clk 0:00:13.4]} 22. Bf1 {[%clk 0:01:17]} 22...
Qd4 {[%clk 0:00:13.4]} 23. Bg2 {[%clk 0:01:05.4]} 23... Qf2 {[%clk 0:00:07.6]}
24. Qc3 {[%clk 0:00:40.7]} 24... h5 {[%clk 0:00:05.8]} 25. Qd2 {[%clk
0:00:38.3]} 25... h4 {[%clk 0:00:05.3]} 26. Qxf2 {[%clk 0:00:35]} 26... Bxf2
{[%clk 0:00:06]} 27. gxh4 {[%clk 0:00:33.8]} 27... Nxc1 {[%clk 0:00:04.9]} 28.
Raxc1 {[%clk 0:00:29]} 28... Be3 {[%clk 0:00:05.8]} 29. Rxd8+ {[%clk 0:00:26.2]}
29... Rxd8 {[%clk 0:00:06.7]} 30. Rf1 {[%clk 0:00:26.1]} 30... Rd2 {[%clk
0:00:07.2]} 31. Kg3 {[%clk 0:00:20.8]} 31... Rxb2 {[%clk 0:00:07.2]} 32. Rd1
{[%clk 0:00:21.5]} 32... Rxa2 {[%clk 0:00:05.7]} 33. Rd8+ {[%clk 0:00:21.2]}
33... Kh7 {[%clk 0:00:06.2]} 34. Rd7 {[%clk 0:00:21.6]} 34... Ra3 {[%clk
0:00:05.3]} 35. Rxf7 {[%clk 0:00:20.4]} 35... b4 {[%clk 0:00:04]} 36. e6 {[%clk
0:00:19.7]} 36... Bc5+ {[%clk 0:00:02.8]} 37. Kg4 {[%clk 0:00:19.9]} 37... b3
{[%clk 0:00:03.1]} 38. e7 {[%clk 0:00:18.8]} 38... Bxe7 {[%clk 0:00:02.5]} 39.
Rxe7 {[%clk 0:00:19.7]} 39... Ra6 {[%clk 0:00:01.2]} 40. e5 {[%clk 0:00:19]}
40... Rb6 {[%clk 0:00:01.4]} 41. Be4+ {[%clk 0:00:19]} 41... Kh6 {[%clk
0:00:01.4]} 42. Re6+ {[%clk 0:00:18.9]} 1-0

[Event "Early-Titled-Tuesday-Blitz-February-06-2024"]
[Site "Chess.com"]
[Date "2024.02.06"]
[Round "5"]
[White "NikitaShnadrygin"]
[Black "chess_blitz00"]
[Result "0-1"]
[WhiteElo "2677"]
[BlackElo "2494"]
[TimeControl "180+1"]
[EndTime "8:55:40 PST"]
[Termination "chess_blitz00 won by checkmate"]

1. e4 {[%clk 0:03:00.9]} 1... d6 {[%clk 0:02:51.3]} 2. d4 {[%clk 0:02:59.7]}
2... Nf6 {[%clk 0:02:50.9]} 3. Nc3 {[%clk 0:02:59.2]} 3... e5 {[%clk 0:02:51.4]}
4. f3 {[%clk 0:02:56.6]} 4... Nc6 {[%clk 0:02:47.8]} 5. Bb5 {[%clk 0:02:52.1]}
5... Bd7 {[%clk 0:02:44.6]} 6. Bxc6 {[%clk 0:02:43.9]} 6... Bxc6 {[%clk
0:02:45.5]} 7. Nge2 {[%clk 0:02:44.6]} 7... Be7 {[%clk 0:02:41.5]} 8. O-O {[%clk
0:02:41]} 8... O-O {[%clk 0:02:41.2]} 9. Be3 {[%clk 0:02:41]} 9... Nh5 {[%clk
0:02:29.6]} 10. Qd2 {[%clk 0:02:34.4]} 10... h6 {[%clk 0:02:08.8]} 11. f4 {[%clk
0:02:16.1]} 11... exf4 {[%clk 0:02:05.6]} 12. Nxf4 {[%clk 0:02:15]} 12... Nxf4
{[%clk 0:02:04.8]} 13. Bxf4 {[%clk 0:02:15.6]} 13... Bf6 {[%clk 0:01:55]} 14.
Rae1 {[%clk 0:02:01.1]} 14... Re8 {[%clk 0:01:50.6]} 15. Rf3 {[%clk 0:01:36.6]}
15... b5 {[%clk 0:01:35.1]} 16. d5 {[%clk 0:00:58]} 16... Bd7 {[%clk 0:01:34.1]}
17. Bxh6 {[%clk 0:00:47.5]} 17... b4 {[%clk 0:01:02.1]} 18. Nd1 {[%clk
0:00:37.3]} 18... gxh6 {[%clk 0:00:19.7]} 19. Qxh6 {[%clk 0:00:35.6]} 19... Be5
{[%clk 0:00:17.7]} 20. Ree3 {[%clk 0:00:22.7]} 20... Bg4 {[%clk 0:00:01.6]} 21.
Rg3 {[%clk 0:00:07.5]} 21... Bxg3 {[%clk 0:00:01.9]} 22. Rxg3 {[%clk 0:00:08.4]}
22... Rxe4 {[%clk 0:00:02.3]} 23. Ne3 {[%clk 0:00:09.1]} 23... Qe7 {[%clk
0:00:02.3]} 24. h3 {[%clk 0:00:05.4]} 24... f5 {[%clk 0:00:02.4]} 25. Nxf5
{[%clk 0:00:05.1]} 25... Re1+ {[%clk 0:00:02.2]} 26. Kh2 {[%clk 0:00:05.2]}
26... Qe5 {[%clk 0:00:02.4]} 27. Qg6+ {[%clk 0:00:03.8]} 27... Kf8 {[%clk
0:00:02.5]} 28. hxg4 {[%clk 0:00:03.9]} 28... Re8 {[%clk 0:00:03.1]} 29. Qh7
{[%clk 0:00:02.9]} 29... Re7 {[%clk 0:00:02.9]} 30. Qh6+ {[%clk 0:00:02.8]}
30... Ke8 {[%clk 0:00:03.2]} 31. g5 {[%clk 0:00:03.3]} 31... Rf7 {[%clk
0:00:03.3]} 32. Nh4 {[%clk 0:00:03]} 32... Rff1 {[%clk 0:00:03.2]} 33. Qg6+
{[%clk 0:00:01.3]} 33... Kd7 {[%clk 0:00:03.3]} 34. Kh3 {[%clk 0:00:02]} 34...
Rh1+ {[%clk 0:00:03.2]} 35. Kg4 {[%clk 0:00:02.5]} 35... Re4+ {[%clk 0:00:03.6]}
36. Kf3 {[%clk 0:00:02.6]} 36... Qf4# {[%clk 0:00:04]} 0-1

[Event "Early-Titled-Tuesday-Blitz-February-06-2024"]
[Site "Chess.com"]
[Date "2024.02.06"]
[Round "5"]
[White "SnekkerAndersen"]
[Black "Jumbo"]
[Result "0-1"]
[WhiteElo "2645"]
[BlackElo "2865"]
[TimeControl "180+1"]
[EndTime "8:55:41 PST"]
[Termination "Jumbo won by resignation"]

1. d4 {[%clk 0:03:00.4]} 1... Nf6 {[%clk 0:03:00.4]} 2. c4 {[%clk 0:02:58.3]}
2... e6 {[%clk 0:03:01]} 3. Nf3 {[%clk 0:02:58.1]} 3... Bb4+ {[%clk 0:03:01.5]}
4. Bd2 {[%clk 0:02:57.9]} 4... c5 {[%clk 0:03:02]} 5. Bxb4 {[%clk 0:02:56.8]}
5... cxb4 {[%clk 0:03:02.9]} 6. a3 {[%clk 0:02:57.5]} 6... bxa3 {[%clk
0:03:02.5]} 7. Rxa3 {[%clk 0:02:57.7]} 7... b6 {[%clk 0:03:00.5]} 8. Nc3 {[%clk
0:02:40.7]} 8... Bb7 {[%clk 0:03:00.4]} 9. Qc2 {[%clk 0:02:41]} 9... Nc6 {[%clk
0:02:40.2]} 10. e4 {[%clk 0:02:41]} 10... Nb4 {[%clk 0:02:40.3]} 11. Qb1 {[%clk
0:02:41.3]} 11... O-O {[%clk 0:02:37.5]} 12. Be2 {[%clk 0:02:31.3]} 12... d6
{[%clk 0:02:26.9]} 13. O-O {[%clk 0:02:30.7]} 13... a5 {[%clk 0:02:12.5]} 14.
Re1 {[%clk 0:02:26.7]} 14... e5 {[%clk 0:01:55.1]} 15. Bf1 {[%clk 0:02:07.6]}
15... Re8 {[%clk 0:01:53.1]} 16. Nd5 {[%clk 0:02:04]} 16... g6 {[%clk
0:01:07.5]} 17. Rae3 {[%clk 0:01:52.1]} 17... Rc8 {[%clk 0:00:59.6]} 18. Rd1
{[%clk 0:01:51.4]} 18... Nc6 {[%clk 0:00:37]} 19. b3 {[%clk 0:01:37.2]} 19...
exd4 {[%clk 0:00:33.5]} 20. Nxd4 {[%clk 0:01:37.3]} 20... Nxd4 {[%clk
0:00:33.8]} 21. Rxd4 {[%clk 0:01:34]} 21... Bxd5 {[%clk 0:00:34.2]} 22. cxd5
{[%clk 0:01:25.7]} 22... Rc5 {[%clk 0:00:34.4]} 23. b4 {[%clk 0:01:24.9]} 23...
axb4 {[%clk 0:00:34.3]} 24. Qxb4 {[%clk 0:01:25.8]} 24... Qc7 {[%clk 0:00:34.3]}
25. Rb3 {[%clk 0:01:25.1]} 25... Rc1 {[%clk 0:00:32.1]} 26. Rb1 {[%clk
0:01:18.1]} 26... Rxb1 {[%clk 0:00:26.7]} 27. Qxb1 {[%clk 0:01:17.8]} 27... Qc5
{[%clk 0:00:27.3]} 28. Rc4 {[%clk 0:01:16.3]} 28... Qa5 {[%clk 0:00:24.5]} 29.
Rb4 {[%clk 0:01:15.9]} 29... Re7 {[%clk 0:00:20.7]} 30. f3 {[%clk 0:00:44.9]}
30... Qc5+ {[%clk 0:00:19.6]} 31. Kh1 {[%clk 0:00:45.2]} 31... Nd7 {[%clk
0:00:16.3]} 32. Rc4 {[%clk 0:00:39.8]} 32... Qe3 {[%clk 0:00:13.9]} 33. Rc8+
{[%clk 0:00:37.4]} 33... Kg7 {[%clk 0:00:13.7]} 34. Qb2+ {[%clk 0:00:38]} 34...
Ne5 {[%clk 0:00:13]} 35. Rb8 {[%clk 0:00:36.1]} 35... Rc7 {[%clk 0:00:09.2]} 36.
Qxb6 {[%clk 0:00:19.6]} 36... Qe1 {[%clk 0:00:07.5]} 37. Kg1 {[%clk 0:00:16.8]}
37... Rc1 {[%clk 0:00:07.2]} 38. Qb5 {[%clk 0:00:17.2]} 38... Qe3+ {[%clk
0:00:06.5]} 39. Kh1 {[%clk 0:00:17.1]} 39... Qf2 {[%clk 0:00:07]} 40. h3 {[%clk
0:00:13.5]} 40... Rxf1+ {[%clk 0:00:06.3]} 41. Kh2 {[%clk 0:00:14]} 41... Rg1
{[%clk 0:00:06.9]} 0-1

[Event "Early-Titled-Tuesday-Blitz-February-06-2024"]
[Site "Chess.com"]
[Date "2024.02.06"]
[Round "5"]
[White "malakismayil"]
[Black "salomez"]
[Result "1-0"]
[WhiteElo "2493"]
[BlackElo "2295"]
[TimeControl "180+1"]
[EndTime "8:55:43 PST"]
[Termination "malakismayil won on time"]

1. e4 {[%clk 0:03:00.9]} 1... c5 {[%clk 0:02:57.8]} 2. Nf3 {[%clk 0:03:01]} 2...
e6 {[%clk 0:02:57.7]} 3. c3 {[%clk 0:03:00.8]} 3... Nf6 {[%clk 0:02:57.1]} 4. e5
{[%clk 0:03:01]} 4... Nd5 {[%clk 0:02:57.3]} 5. g3 {[%clk 0:03:01.6]} 5... Nc6
{[%clk 0:02:54.7]} 6. Bg2 {[%clk 0:03:01.8]} 6... f6 {[%clk 0:02:55.2]} 7. exf6
{[%clk 0:02:59.8]} 7... Qxf6 {[%clk 0:02:42.6]} 8. O-O {[%clk 0:03:00.7]} 8...
Be7 {[%clk 0:02:42.4]} 9. d4 {[%clk 0:03:00.7]} 9... O-O {[%clk 0:02:38.7]} 10.
c4 {[%clk 0:02:56.4]} 10... Nb6 {[%clk 0:02:34.3]} 11. d5 {[%clk 0:02:56]} 11...
exd5 {[%clk 0:02:30.3]} 12. cxd5 {[%clk 0:02:56.4]} 12... Nd4 {[%clk 0:02:26.2]}
13. Nxd4 {[%clk 0:02:50.7]} 13... cxd4 {[%clk 0:02:26.1]} 14. Nd2 {[%clk
0:02:45.9]} 14... d6 {[%clk 0:02:22.7]} 15. Ne4 {[%clk 0:02:38.3]} 15... Qe5
{[%clk 0:02:14.7]} 16. Bf4 {[%clk 0:02:35.1]} 16... Rxf4 {[%clk 0:02:13.7]} 17.
gxf4 {[%clk 0:02:34.5]} 17... Qxf4 {[%clk 0:02:14]} 18. Qxd4 {[%clk 0:02:32.4]}
18... Bd7 {[%clk 0:01:57.7]} 19. Rac1 {[%clk 0:02:02.3]} 19... Rf8 {[%clk
0:01:54.4]} 20. Rc3 {[%clk 0:02:01.2]} 20... Bb5 {[%clk 0:01:10]} 21. Rf3 {[%clk
0:01:44.5]} 21... Qxf3 {[%clk 0:00:51.5]} 22. Bxf3 {[%clk 0:01:43]} 22... Bxf1
{[%clk 0:00:51.5]} 23. Kxf1 {[%clk 0:01:28.8]} 23... Rxf3 {[%clk 0:00:50.6]} 24.
Nd2 {[%clk 0:01:29]} 24... Rf5 {[%clk 0:00:46.4]} 25. Qe4 {[%clk 0:01:26.8]}
25... Rf7 {[%clk 0:00:30.8]} 26. Nb3 {[%clk 0:01:20.4]} 26... Bf6 {[%clk
0:00:23.2]} 27. Qe8+ {[%clk 0:01:18.5]} 27... Rf8 {[%clk 0:00:22.7]} 28. Qe6+
{[%clk 0:01:19.4]} 28... Kh8 {[%clk 0:00:21.8]} 29. Qxd6 {[%clk 0:00:58.5]}
29... Rd8 {[%clk 0:00:18.5]} 30. Qc7 {[%clk 0:00:58.3]} 30... Rxd5 {[%clk
0:00:14.4]} 31. Qxb7 {[%clk 0:00:54.5]} 31... h6 {[%clk 0:00:08.3]} 32. Qxa7
{[%clk 0:00:53.4]} 32... Nc4 {[%clk 0:00:08.1]} 33. a4 {[%clk 0:00:19.4]} 33...
Nxb2 {[%clk 0:00:06.5]} 34. a5 {[%clk 0:00:19.5]} 34... Rb5 {[%clk 0:00:03.1]}
35. Qa8+ {[%clk 0:00:10.8]} 35... Kh7 {[%clk 0:00:02.9]} 36. Qf3 {[%clk
0:00:11.4]} 36... Nc4 {[%clk 0:00:01.6]} 37. Qd3+ {[%clk 0:00:09.8]} 1-0